lending/lending_fUSD_20240621
["ID","MTS","AMOUNT","RATE_DAILY","PERIOD"]
[330048723,1718969445342,-151.0,0.0002297,7]
[330048724,1718969445353,-151.0,0.0002297,7]
[330048725,1718969445364,-151.0,0.0002297,7]
[330048726,1718969445374,-151.0,0.0002297,7]
[330048727,1718969445384,-151.0,0.0002297,7]
[330048728,1718969445395,-151.0,0.0002297,7]
[330048729,1718969445405,-151.0,0.0002297,7]
[330048730,1718969445415,-151.0,0.0002297,7]
[330048731,1718969445425,-3058.90854626,0.0002297,7]
[330048732,1718969445438,-753.06629574,0.0002297,7]
[330048733,1718969445448,-445.540008,0.0002297,7]
[330048734,1718969445458,-3811.974842,0.0002297,7]
[330048735,1718969445467,-151.40085426,0.0002297,7]
[330048736,1718969445480,-294.13915374,0.0002297,7]
[330048737,1718969445490,-151.0,0.0002297,7]
[330048738,1718969445500,-151.0,0.0002297,7]
[330048739,1718969445510,-160.295654,0.0002297,7]
[330048740,1718969445520,-188.183288,0.0002297,7]
[330048741,1718969445533,-188.183288,0.0002297,7]
[330048742,1718969445543,-151.0,0.0002297,7]
[330048743,1718969445553,-151.0,0.0002297,7]
[330048744,1718969445564,-3969.9328,0.0002297,7]
[330048745,1718969445575,-294.295649,0.0002297,7]
[330048746,1718969445585,-3969.9328,0.0002297,7]
[330048747,1718969445595,-32031.5306013,0.0002297,3]
[330048748,1718969445605,-775.345936,0.0002297,7]
[330048749,1718969445615,-775.345936,0.0002297,7]
[330048750,1718969445624,-151.0,0.0002297,7]
[330048751,1718969445634,-3933.902897,0.0002297,7]
[330048752,1718969445644,-3933.902897,0.0002297,7]
[330048753,1718969445654,-249.985319,0.0002297,7]
[330048754,1718969445664,-266.885695,0.0002297,7]
[330048756,1718969445674,-199.127258,0.0002297,7]
[330048757,1718969445683,-266.885695,0.0002297,7]
[330048758,1718969445693,-199.127258,0.0002297,7]
[330048759,1718969445702,-299.271919,0.0002297,7]
[330048760,1718969445712,-219.801448,0.0002297,7]
[330048761,1718969445721,-151.0,0.0002297,7]
[330048762,1718969445731,-151.0,0.0002297,7]
[330048763,1718969445740,-178.926835,0.0002297,7]
[330048764,1718969445749,-178.926835,0.0002297,7]
[330048765,1718969445759,-151.0,0.0002297,7]
[330048766,1718969445768,-169.63014,0.0002297,7]
[330048767,1718969445779,-169.63014,0.0002297,7]
[330048768,1718969445789,-518.381757,0.0002297,7]
[330048769,1718969445798,-518.381757,0.0002297,7]
[330048770,1718969445808,-151.0,0.0002297,7]
[330048771,1718969445818,-209.23301289,0.00022972,2]
[330048772,1718969445827,-5903.55757461,0.00022972,2]
[330048773,1718969445837,-150.0,0.00022973,10]
[330048774,1718969445846,-150.0,0.00022973,10]
[330048775,1718969445855,-151.0,0.00022974,7]
[330048776,1718969445864,-151.0,0.00022974,7]
[330048777,1718969445874,-151.0,0.00022974,7]
[330048778,1718969445883,-151.0,0.00022974,7]
[330048779,1718969445892,-151.0,0.00022974,7]
[330048780,1718969445902,-151.0,0.00022974,7]
[330048781,1718969446190,-151.0,0.00022974,7]
[330048782,1718969446200,-151.0,0.00022974,7]
[330048783,1718969446210,-151.0,0.00022974,7]
[330048784,1718969446220,-151.0,0.00022974,7]
[330048785,1718969446230,-156.283364,0.00022974,7]
[330048786,1718969446239,-151.0,0.00022974,7]
[330048787,1718969446249,-151.0,0.00022974,7]
[330048788,1718969446258,-151.0,0.00022974,7]
[330048789,1718969446270,-157.524814,0.00022974,7]
[330048791,1718969446281,-151.0,0.00022974,7]
[330048793,1718969446291,-151.0,0.00022974,7]
[330048794,1718969446300,-151.0,0.00022974,7]
[330048795,1718969446310,-151.0,0.00022974,7]
[330048796,1718969446319,-151.0,0.00022974,7]
[330048797,1718969446329,-151.0,0.00022974,7]
[330048798,1718969446339,-238.269608,0.00022974,7]
[330048799,1718969446349,-151.0,0.00022974,7]
[330048800,1718969446359,-238.269608,0.00022974,7]
[330048801,1718969446368,-151.0,0.00022974,7]
[330048802,1718969446378,-151.0,0.00022974,7]
[330048803,1718969446387,-151.0,0.00022974,7]
[330048804,1718969446396,-1094.7730441,0.00022974,2]
[330048805,1718969446406,-1026.3546896,0.00022974,2]
[330048806,1718969446416,-622.03395219,0.00022974,2]
[330048807,1718969446428,-335.90238291,0.00022974,2]
[330048808,1718969446438,-253.917052,0.00022974,7]
[330048809,1718969446447,-151.0,0.00022974,7]
[330048810,1718969446457,-313.290097,0.00022974,7]
[330048811,1718969446467,-313.290097,0.00022974,7]
[330048812,1718969446476,-1326.50233109,0.00022974,2]
[330048813,1718969446488,-382.60523184,0.00022974,2]
[330048814,1718969446500,-2545.05032917,0.00022974,2]
[330048815,1718969446510,-3667.06885325,0.00022974,2]
[330048816,1718969446522,-321.22344735,0.00022974,2]
[330048817,1718969446533,-3509.56244052,0.00022974,2]
[330048818,1718969446545,-212.86426868,0.00022974,2]
[330048819,1718969446555,-1700.73639911,0.00022974,2]
[330048820,1718969446567,-1755.82471859,0.00022974,2]
[330048821,1718969446576,-151.0,0.00022974,7]
[330048822,1718969446586,-151.0,0.00022974,7]
[330048823,1718969446596,-187.668136,0.00022974,7]
[330048824,1718969446606,-151.0,0.00022974,7]
[330048825,1718969446616,-151.0,0.00022974,7]
[330048826,1718969446625,-170.118671,0.00022974,7]
[330048827,1718969446634,-151.0,0.00022974,7]
[330048828,1718969446643,-151.0,0.00022974,7]
[330048829,1718969446653,-151.0,0.00022974,7]
[330048830,1718969446663,-151.0,0.00022974,7]
[330048831,1718969446672,-151.0,0.00022974,7]
[330048832,1718969446681,-151.0,0.00022974,7]
[330048833,1718969446692,-151.0,0.00022974,7]
[330048834,1718969446702,-155.599657,0.00022974,7]
[330048835,1718969446711,-88.88009703,0.00022974,7]
[330048836,1718969446723,-62.11990297,0.00022974,7]
[330048837,1718969446733,-151.0,0.00022974,7]
[330048838,1718969446743,-102.48009703,0.00022974,7]
[330048839,1718969446755,-48.51990297,0.00022974,7]
[330048840,1718969446764,-151.0,0.00022974,7]
[330048841,1718969446775,-607.98011703,0.00022974,7]
[330048842,1718969446786,-344.447979,0.00022974,7]
[330048843,1718969446798,-2161.914264,0.00022974,7]
[330048844,1718969446810,-697.63248197,0.00022974,7]
[330048845,1718969446820,-3811.974842,0.00022974,7]
[330048846,1718969446830,-445.540008,0.00022974,7]
[330048847,1718969446840,-445.540008,0.00022974,7]
[330048848,1718969446849,-3811.974842,0.00022974,7]
[330048849,1718969446859,-3811.974842,0.00022974,7]
[330048850,1718969446868,-445.540008,0.00022974,7]
[330048851,1718969446877,-445.540008,0.00022974,7]
[330048852,1718969446886,-155.479984,0.00022974,7]
[330048853,1718969446896,-154.528508,0.00022974,7]
[330048854,1718969446905,-188.183288,0.00022974,7]
[330048855,1718969446915,-188.183288,0.00022974,7]
[330048856,1718969446924,-151.0,0.00022974,7]
[330048857,1718969446934,-151.0,0.00022974,7]
[330048858,1718969446943,-188.183288,0.00022974,7]
[330048859,1718969446953,-188.183288,0.00022974,7]
[330048860,1718969446963,-151.0,0.00022974,7]
[330048861,1718969446972,-159.82562,0.00022974,7]
[330048862,1718969446982,-3969.9328,0.00022974,7]
[330048863,1718969446991,-3969.9328,0.00022974,7]
[330048864,1718969447001,-3969.9328,0.00022974,7]
[330048865,1718969447010,-3969.9328,0.00022974,7]
[330048866,1718969447020,-775.345936,0.00022974,7]
[330048867,1718969447031,-775.345936,0.00022974,7]
[330048868,1718969447041,-151.0,0.00022974,7]
[330048869,1718969447051,-151.0,0.00022974,7]
[330048870,1718969447061,-4402.759541,0.00022974,2]
[330048871,1718969447071,-4127.6070199,0.00022974,2]
[330048872,1718969447081,-3852.4544987,0.00022974,2]
[330048873,1718969447090,-775.345936,0.00022974,7]
[330048874,1718969447100,-775.345936,0.00022974,7]
[330048875,1718969447109,-3933.902897,0.00022974,7]
[330048876,1718969447118,-3933.902897,0.00022974,7]
[330048877,1718969447128,-3933.902897,0.00022974,7]
[330048878,1718969447139,-3933.902897,0.00022974,7]
[330048879,1718969447148,-266.885695,0.00022974,7]
[330048880,1718969447158,-266.885695,0.00022974,7]
[330048881,1718969447167,-199.127258,0.00022974,7]
[330048882,1718969447178,-199.127258,0.00022974,7]
[330048883,1718969447191,-172.62990075,0.00022974,7]
[330048884,1718969447482,-371.08944211,0.00022513,2]
[330048886,1718969448006,-706.03695909,0.00022513,2]
[330048887,1718969448016,-94.25579425,0.00022974,7]
[330048888,1718969448028,-266.885695,0.00022974,7]
[330048889,1718969448038,-199.127258,0.00022974,7]
[330048890,1718969448047,-199.127258,0.00022974,7]
[330048891,1718969448061,-983.5402196,0.00022974,2]
[330048892,1718969448074,-358.54738649,0.00022974,2]
[330048893,1718969448086,-796.10842129,0.00022974,2]
[330048894,1718969448098,-1690.49538283,0.00022974,2]
[330048895,1718969448110,-787.9084716,0.00022974,2]
[330048896,1718969448121,-1517.88788599,0.00022974,2]
[330048897,1718969448131,-5751.1100794,0.00022974,2]
[330048898,1718969448141,-5367.732391,0.00022974,2]
[330048899,1718969448152,-4984.3547026,0.00022974,2]
[330048900,1718969448161,-151.0,0.00022974,7]
[330048901,1718969448171,-151.0,0.00022974,7]
[330048902,1718969448186,-3796.3669639,0.00022974,2]
[330048903,1718969448195,-3559.1112311,0.00022974,2]
[330048904,1718969448205,-3321.8554983,0.00022974,2]
[330048905,1718969448214,-3084.5997654,0.00022974,2]
[330048906,1718969448226,-151.0,0.00022974,7]
[330048907,1718969448236,-151.0,0.00022974,7]
[330048908,1718969448246,-178.926835,0.00022974,7]
[330048909,1718969448256,-178.926835,0.00022974,7]
[330048910,1718969448268,-178.926835,0.00022974,7]
[330048911,1718969448279,-178.926835,0.00022974,7]
[330048912,1718969448289,-151.0,0.00022974,7]
[330048913,1718969448298,-151.0,0.00022974,7]
[330048914,1718969448309,-169.63014,0.00022974,7]
[330048915,1718969448319,-169.63014,0.00022974,7]
[330048916,1718969448329,-169.63014,0.00022974,7]
[330048917,1718969448338,-169.63014,0.00022974,7]
[330048918,1718969448349,-518.381757,0.00022974,7]
[330048919,1718969448359,-8168.95084347,0.00022974,2]
[330048920,1718969448370,-2176.24959874,0.00022974,2]
[330048921,1718969448382,-406.87494374,0.00022974,2]
[330048922,1718969448394,-517.70657347,0.00022974,2]
[330048923,1718969448406,-643.37966994,0.00022974,2]
[330048924,1718969448418,-14128.95173612,0.00022974,2]
[330048925,1718969448430,-790.77898382,0.00022974,2]
[330048926,1718969448442,-379.44033928,0.00022974,2]
[330048927,1718969448455,-480.16982061,0.00022974,2]
[330048928,1718969448467,-3076.89639216,0.00022974,2]
[330048929,1718969448479,-6362.01069265,0.00022974,2]
[330048930,1718969448489,-9889.49413038,0.00022974,2]
[330048931,1718969448501,-1132.2417643,0.00022974,2]
[330048932,1718969448513,-987.92845493,0.00022974,2]
[330048933,1718969448525,-8571.89705668,0.00022974,2]
[330048934,1718969448539,-264.11694393,0.00022974,2]
[330048935,1718969448788,-1077.15225315,0.00022974,2]
[330048941,1718970130471,211.92142272,0.00026,60]
[330048989,1718970633375,-693.87996939,0.00014,2]
[330048990,1718970633435,-248997.53120623,0.00014,2]
[330048991,1718970633445,-564.08,0.00018842,2]
[330048992,1718970633456,-10507.23,0.00020048,2]
[330048993,1718970633467,-150.0,0.0002072,2]
[330048994,1718970633476,-900.98,0.00020889,2]
[330048995,1718970633486,-205.31,0.00020889,7]
[330048996,1718970633495,-499.99,0.00020889,2]
[330048997,1718970633506,-2132.21,0.00020889,2]
[330048998,1718970633516,-1000.0,0.00020902,2]
[330048999,1718970633525,-250.0,0.0002091,2]
[330049000,1718970633534,-1250.0,0.00021,2]
[330049001,1718970633543,-564.08,0.00021106,2]
[330049002,1718970633553,-166.891,0.00021285,2]
[330049003,1718970633562,-250.0,0.00021605,2]
[330049004,1718970633574,-459.07,0.00021644,2]
[330049005,1718970633584,-999.99,0.00021644,2]
[330049006,1718970633594,-923.02,0.00021644,2]
[330049007,1718970633603,-153.72,0.00021644,2]
[330049008,1718970633612,-165.39,0.00021651,2]
[330049009,1718970633622,-180.83664651,0.00021817,2]
[330049010,1718970633632,-49202.67114705,0.00021897,2]
[330049011,1718970633752,-12329.71485935,0.00021897,2]
[330049012,1718970633763,-150.0,0.00021905,2]
[330049013,1718970633773,-527.5,0.00021905,2]
[330049014,1718970633783,-423.54,0.00021905,2]
[330049015,1718970633792,-527.5,0.00021905,2]
[330049016,1718970633802,-150.0,0.00021905,2]
[330049017,1718970633811,-423.54,0.00021905,2]
[330049018,1718970633821,-423.54,0.00021905,2]
[330049019,1718970633831,-527.5,0.00021905,2]
[330049020,1718970633840,-527.5,0.00021905,2]
[330049021,1718970633850,-423.54,0.00021905,2]
[330049022,1718970633859,-307661.930032,0.00021907,2]
[330049023,1718970633869,-1508.67427129,0.00021917,2]
[330049024,1718970633879,-500.0,0.00021917,4]
[330049025,1718970633888,-509.37594518,0.00021917,4]
[330049026,1718970633898,-517.70845129,0.00021917,4]
[330049027,1718970633907,-2155.95,0.00021917,4]
[330049028,1718970633917,-500.0,0.00021917,4]
[330049029,1718970633928,-3552.82,0.00021917,4]
[330049030,1718970633937,-500.0,0.00021917,4]
[330049031,1718970633946,-405.43150713,0.00021917,4]
[330049032,1718970633956,-1176.94,0.00021917,4]
[330049033,1718970633965,-500.0,0.00021917,4]
[330049034,1718970633974,-500.0,0.00021917,4]
[330049035,1718970633984,-879.1,0.00021917,4]
[330049036,1718970633993,-500.0,0.00021917,4]
[330049037,1718970634003,-500.0,0.00021917,4]
[330049038,1718970634013,-500.0,0.00021917,4]
[330049039,1718970634022,-500.0,0.00021917,4]
[330049040,1718970634031,-2241.8,0.00021917,4]
[330049041,1718970634041,-500.0,0.00021917,4]
[330049042,1718970634051,-933.2,0.00021917,4]
[330049043,1718970634060,-500.0,0.00021917,4]
[330049044,1718970634070,-500.0,0.00021917,4]
[330049045,1718970634079,-500.0,0.00021917,4]
[330049046,1718970634089,-2939.27,0.00021917,4]
[330049047,1718970634098,-2150.72,0.00021917,4]
[330049048,1718970634109,-500.0,0.00021917,4]
[330049049,1718970634120,-500.0,0.00021917,4]
[330049050,1718970634129,-500.0,0.00021917,4]
[330049051,1718970634139,-500.0,0.00021917,4]
[330049052,1718970634149,-1008.92,0.00021917,4]
[330049053,1718970634159,-500.0,0.00021917,4]
[330049054,1718970634170,-500.0,0.00021917,4]
[330049055,1718970634181,-2283.33,0.00021917,4]
[330049056,1718970634191,-500.0,0.00021917,4]
[330049057,1718970634202,-1272.76,0.00021917,4]
[330049058,1718970634211,-5248.79249788,0.00021917,2]
[330049059,1718970634221,-2345.99,0.00021917,4]
[330049060,1718970634231,-496.63425867,0.00021917,4]
[330049061,1718970634240,-509.93074962,0.00021917,4]
[330049062,1718970634250,-735.57,0.00021917,4]
[330049063,1718970634259,-1947.1,0.00021917,4]
[330049064,1718970634269,-500.0,0.00021917,4]
[330049065,1718970634278,-500.0,0.00021917,4]
[330049066,1718970634288,-500.0,0.00021917,4]
[330049067,1718970634297,-187.9973602,0.00021917,4]
[330049068,1718970634307,-500.0,0.00021917,4]
[330049069,1718970634318,-1255.07,0.00021917,4]
[330049070,1718970634329,-500.0,0.00021917,4]
[330049071,1718970634340,-618.15,0.00021917,4]
[330049072,1718970634350,-500.0,0.00021917,4]
[330049073,1718970634359,-500.0,0.00021917,4]
[330049074,1718970634369,-500.0,0.00021917,4]
[330049075,1718970634379,-500.0,0.00021917,4]
[330049076,1718970634388,-500.0,0.00021917,4]
[330049077,1718970634398,-504.74221726,0.00021917,4]
[330049078,1718970634409,-500.0,0.00021917,4]
[330049079,1718970634418,-500.0,0.00021917,4]
[330049080,1718970634428,-506.53187518,0.00021917,4]
[330049081,1718970634438,-500.0,0.00021917,4]
[330049082,1718970634450,-510.07273397,0.00021917,4]
[330049083,1718970634461,-2124.93,0.00021917,4]
[330049084,1718970634471,-500.0,0.00021917,4]
[330049085,1718970634480,-500.0,0.00021917,4]
[330049086,1718970634490,-2049.53,0.00021917,4]
[330049087,1718970634502,-500.0,0.00021917,4]
[330049088,1718970634511,-500.0,0.00021917,4]
[330049089,1718970634520,-500.0,0.00021917,4]
[330049090,1718970634532,-514.95239987,0.00021917,4]
[330049091,1718970634542,-500.0,0.00021917,4]
[330049092,1718970634553,-1303.74,0.00021917,4]
[330049093,1718970634563,-572.6,0.00021917,4]
[330049094,1718970634572,-500.0,0.00021917,4]
[330049095,1718970634583,-2037.4,0.00021917,4]
[330049096,1718970634594,-605.76,0.00021917,4]
[330049097,1718970634603,-500.0,0.00021917,4]
[330049098,1718970634612,-500.0,0.00021917,4]
[330049099,1718970634621,-500.0,0.00021917,4]
[330049100,1718970634632,-1747.68,0.00021917,4]
[330049101,1718970634641,-500.0,0.00021917,4]
[330049102,1718970634651,-500.0,0.00021917,4]
[330049103,1718970634663,-1172.21,0.00021917,4]
[330049104,1718970634673,-535.19143307,0.00021917,4]
[330049105,1718970634683,-500.0,0.00021917,4]
[330049106,1718970634693,-500.0,0.00021917,4]
[330049107,1718970634702,-500.0,0.00021917,4]
[330049108,1718970634712,-500.0,0.00021917,4]
[330049109,1718970634721,-1840.4,0.00021917,4]
[330049110,1718970634731,-500.0,0.00021917,4]
[330049111,1718970634740,-500.0,0.00021917,4]
[330049112,1718970634752,-500.0,0.00021917,4]
[330049113,1718970634761,-1441.36,0.00021917,4]
[330049114,1718970634771,-500.0,0.00021917,4]
[330049115,1718970634780,-1513.7,0.00021917,4]
[330049116,1718970634789,-522.47289024,0.00021917,4]
[330049117,1718970634799,-526.93821555,0.00021917,4]
[330049118,1718970634808,-500.0,0.00021917,4]
[330049119,1718970634818,-500.0,0.00021917,4]
[330049120,1718970634828,-500.0,0.00021917,4]
[330049121,1718970634837,-964.89,0.00021917,4]
[330049122,1718970634847,-500.0,0.00021917,4]
[330049123,1718970634856,-2115.17,0.00021917,4]
[330049124,1718970634866,-500.0,0.00021917,4]
[330049125,1718970634876,-503.44313381,0.00021917,4]
[330049126,1718970634885,-500.0,0.00021917,4]
[330049127,1718970634895,-500.0,0.00021917,4]
[330049128,1718970634904,-500.0,0.00021917,4]
[330049129,1718970634914,-500.0,0.00021917,4]
[330049130,1718970634923,-1286.71,0.00021917,4]
[330049131,1718970634933,-1540.31,0.00021917,4]
[330049132,1718970634943,-500.0,0.00021917,4]
[330049133,1718970634953,-500.0,0.00021917,4]
[330049134,1718970634962,-1641.22,0.00021917,4]
[330049135,1718970634971,-663.17,0.00021917,4]
[330049136,1718970634980,-500.0,0.00021917,4]
[330049137,1718970634989,-568.81,0.00021917,4]
[330049138,1718970634999,-500.0,0.00021917,4]
[330049139,1718970635009,-500.0,0.00021917,4]
[330049140,1718970635018,-672.3,0.00021917,4]
[330049141,1718970635027,-947.03,0.00021917,4]
[330049142,1718970635036,-500.0,0.00021917,4]
[330049143,1718970635046,-500.0,0.00021917,4]
[330049144,1718970635056,-887.09,0.00021917,4]
[330049145,1718970635065,-500.0,0.00021917,4]
[330049146,1718970635075,-659.88,0.00021917,4]
[330049147,1718970635084,-1796.67,0.00021917,4]
[330049148,1718970635093,-500.0,0.00021917,4]
[330049149,1718970635102,-1103.91,0.00021917,4]
[330049150,1718970635111,-500.0,0.00021917,4]
[330049151,1718970635120,-1479.26,0.00021917,4]
[330049152,1718970635129,-500.0,0.00021917,4]
[330049153,1718970635138,-1555.37,0.00021917,4]
[330049154,1718970635148,-500.0,0.00021917,4]
[330049155,1718970635157,-500.0,0.00021917,4]
[330049156,1718970635166,-500.0,0.00021917,4]
[330049157,1718970635175,-500.0,0.00021917,4]
[330049158,1718970635184,-500.0,0.00021917,4]
[330049159,1718970635193,-151.0,0.00021917,2]
[330049160,1718970635203,-151.0,0.00021917,2]
[330049161,1718970635212,-500.0,0.00021917,4]
[330049162,1718970635482,-500.0,0.00021917,4]
[330049163,1718970635492,-500.0,0.00021917,4]
[330049164,1718970635502,-500.0,0.00021917,4]
[330049165,1718970635511,-475.53047602,0.00021917,4]
[330049166,1718970635520,-155.825335,0.00021917,2]
[330049167,1718970635529,-500.0,0.00021917,4]
[330049168,1718970635538,-500.0,0.00021917,4]
[330049169,1718970635548,-244.72023958,0.00021917,4]
[330049170,1718970635558,-500.0,0.00021917,4]
[330049171,1718970635569,-690.1,0.00021917,4]
[330049172,1718970635579,-151.0,0.00021917,2]
[330049173,1718970635591,-157.153345,0.00021917,2]
[330049174,1718970635601,-756.41,0.00021917,4]
[330049175,1718970635610,-2020.83,0.00021917,4]
[330049176,1718970635621,-500.0,0.00021917,4]
[330049177,1718970635630,-500.0,0.00021917,4]
[330049178,1718970635640,-500.0,0.00021917,4]
[330049179,1718970635649,-1545.05,0.00021917,4]
[330049180,1718970635660,-500.0,0.00021917,4]
[330049181,1718970635670,-500.0,0.00021917,4]
[330049182,1718970635680,-645.88,0.00021917,4]
[330049183,1718970635689,-500.0,0.00021917,4]
[330049184,1718970635699,-500.0,0.00021917,4]
[330049185,1718970635708,-500.0,0.00021917,4]
[330049186,1718970635717,-586.31,0.00021917,4]
[330049187,1718970635727,-500.0,0.00021917,4]
[330049188,1718970635736,-500.0,0.00021917,4]
[330049189,1718970635747,-553.28,0.00021917,4]
[330049190,1718970635758,-563.28,0.00021917,4]
[330049191,1718970635768,-500.0,0.00021917,4]
[330049192,1718970635777,-500.0,0.00021917,4]
[330049193,1718970635786,-187.974058,0.00021917,2]
[330049194,1718970635796,-187.974058,0.00021917,2]
[330049195,1718970635808,-500.0,0.00021917,4]
[330049196,1718970635817,-532.7,0.00021917,4]
[330049197,1718970635826,-1040.25,0.00021917,4]
[330049198,1718970635836,-17107.75,0.00021917,4]
[330049199,1718970635845,-4752.56,0.00021917,4]
[330049200,1718970635855,-187.974058,0.00021917,2]
[330049201,1718970635864,-500.0,0.00021917,4]
[330049202,1718970635874,-500.0,0.00021917,4]
[330049203,1718970635883,-187.974058,0.00021917,2]
[330049204,1718970635892,-500.0,0.00021917,4]
[330049205,1718970635901,-500.0,0.00021917,4]
[330049206,1718970635911,-506.86,0.00021917,4]
[330049207,1718970635921,-500.0,0.00021917,4]
[330049208,1718970635931,-151.0,0.00021917,2]
[330049209,1718970635940,-635.19,0.00021917,4]
[330049210,1718970635949,-151.0,0.00021917,2]
[330049211,1718970635959,-536.40184575,0.00021917,4]
[330049212,1718970635968,-8070.82,0.00021917,4]
[330049213,1718970635978,-500.0,0.00021917,4]
[330049214,1718970635986,-15965.22,0.00021917,4]
[330049215,1718970635996,-500.0,0.00021917,4]
[330049216,1718970636008,-500.0,0.00021917,4]
[330049217,1718970636017,-500.0,0.00021917,4]
[330049218,1718970636026,-500.0,0.00021917,4]
[330049219,1718970636035,-500.0,0.00021917,4]
[330049220,1718970636044,-500.0,0.00021917,4]
[330049221,1718970636053,-2189.62,0.00021917,4]
[330049222,1718970636063,-500.0,0.00021917,4]
[330049223,1718970636073,-591.38,0.00021917,4]
[330049224,1718970636082,-2313.63,0.00021917,4]
[330049225,1718970636091,-500.0,0.00021917,4]
[330049226,1718970636100,-500.0,0.00021917,4]
[330049227,1718970636110,-747.21,0.00021917,4]
[330049228,1718970636119,-151.0,0.00021917,2]
[330049229,1718970636129,-500.0,0.00021917,4]
[330049230,1718970636138,-161.083411,0.00021917,2]
[330049231,1718970636148,-5190.42,0.00021917,4]
[330049232,1718970636159,-500.0,0.00021917,4]
[330049233,1718970636169,-500.0,0.00021917,4]
[330049234,1718970636179,-44564.33750068,0.00021917,4]
[330049235,1718970636212,-462.18704189,0.00021917,4]
[330049260,1718970640480,-213.03,0.00020653,30]
[330049261,1718970640490,-155.81999978,0.00021917,4]
[330049262,1718970640572,-13110.03545765,0.00021917,4]
[330049263,1718970640582,-97.16421435,0.00021917,4]
[330049264,1718970640635,-402.83578565,0.00021917,4]
[330049265,1718970640645,-151.0,0.00021917,2]
[330049266,1718970640655,-151.0,0.00021917,2]
[330049267,1718970640668,-500.0,0.00021917,4]
[330049268,1718970640678,-500.0,0.00021917,4]
[330049269,1718970640688,-497.13041026,0.00021917,4]
[330049270,1718970640697,-2667.21,0.00021917,4]
[330049271,1718970640706,-500.0,0.00021917,4]
[330049272,1718970640715,-887.39,0.00021917,4]
[330049273,1718970640725,-870.35,0.00021917,4]
[330049274,1718970640735,-705.91,0.00021917,4]
[330049275,1718970640744,-322.17380409,0.00021917,4]
[330049276,1718970641060,-13135.14521183,0.00021917,4]
[330049277,1718970641072,-1041.40966545,0.00021917,4]
[330049356,1718970644204,-250.0,0.00021346,2]
[330049357,1718970644214,-2143.07820142,0.00021917,4]
[330049361,1718970648127,-1172.64882274,0.00021917,4]
[330049371,1718970648454,-4154.56429447,0.00021917,4]
[330049372,1718970648464,-500.0,0.00021917,4]
[330049373,1718970648474,-1573.57,0.00021917,4]
[330049374,1718970648483,-500.0,0.00021917,4]
[330049375,1718970648493,-2037.22,0.00021917,4]
[330049376,1718970648503,-2624.14,0.00021917,4]
[330049377,1718970648516,-500.0,0.00021917,4]
[330049378,1718970648524,-621.872922,0.00021917,4]
[330049379,1718970648533,-500.0,0.00021917,4]
[330049380,1718970648542,-1558.37,0.00021917,4]
[330049381,1718970648551,-958.78,0.00021917,4]
[330049382,1718970648560,-500.0,0.00021917,4]
[330049383,1718970648570,-500.0,0.00021917,4]
[330049384,1718970648580,-48581.67,0.00021917,4]
[330049385,1718970648590,-1398.96,0.00021917,4]
[330049386,1718970648603,-500.0,0.00021917,4]
[330049387,1718970648614,-500.0,0.00021917,4]
[330049388,1718970648623,-500.0,0.00021917,4]
[330049389,1718970648633,-500.0,0.00021917,4]
[330049390,1718970648643,-500.0,0.00021917,4]
[330049391,1718970648652,-555.54,0.00021917,4]
[330049392,1718970648662,-2713.27,0.00021917,4]